Cogmind - Beta 16 @@@ ROGUE MODE // 2026.01.26 @ 15:09:39 Player: Jimothy Jimone Result: Destroyed by Triborg with Siege Cannon Performance ------------- Evolutions (0) 0 Regions Visited (3) 600 Robots Destroyed (5) 25 Value Destroyed (234) 234 Prototype IDs (7) 140 Alien Tech Used (0) 0 Bonus (300) 300 TOTAL SCORE: 1299 Bonus ------- Registered with UFD 300 Cogmind --------- Core Integrity 0/250 Matter 300/300 Energy 64/100 System Corruption 2% Temperature Cool (12) Movement Walking (100) Location -9/Scraptown Parts ------- > --- POWER (1) -------- (None) > --- PROPULSION (2) --- Overtuned Titanium Leg > --- UTILITY (2) ------ Small Storage Unit Signal Interpreter > --- WEAPON (2) ------- Mining Claw Companion Sword > --- INVENTORY (8) ---- Ion Engine Subdweller Optics A0-MCA's Component Scanner Assault Rifle Light Assault Rifle Mining Claw Vortex Trap Peak State ------------ > --- POWER ------------ Ion Engine > --- PROPULSION ------- Overtuned Titanium Leg Overtuned Titanium Leg > --- UTILITY ---------- Small Storage Unit Signal Interpreter > --- WEAPON ----------- Mining Claw Companion Sword > --- INVENTORY -------- Ion Engine Subdweller Optics A0-MCA's Component Scanner Assault Rifle Light Assault Rifle Mining Claw Vortex Trap Vortex Trap [Rating: 17] Favorites ----------- Power Ion Engine Engine Ion Engine Propulsion Aluminum Leg Leg Aluminum Leg Utility Small Storage Unit Storage Small Storage Unit Processor Signal Interpreter Weapon Mining Claw Ballistic Gun Assault Rifle Slashing Weapon Mining Claw Build | -11 -10 -10 -9 ------- Run | Yrd Mat Sub Scr Slots Evolved . | . . . . Power . | . . . . Propulsion . | . . . . Utility . | . . . . Weapon . | . . . . Parts Attached 13 | 6 1 2 4 Power 1 | 1 . . . Engine 1 | 1 . . . Core . | . . . . Reactor . | . . . . Propulsion 5 | 2 . . 3 Treads . | . . . . Leg 5 | 2 . . 3 Wheel . | . . . . Hover . | . . . . Flight . | . . . . Utility 2 | 1 1 . . Device . | . . . . Storage 1 | 1 . . . Processor 1 | . 1 . . Hackware . | . . . . Protection . | . . . . Artifact . | . . . . Weapon 5 | 2 . 2 1 Energy Gun . | . . . . Energy Cannon . | . . . . Ballistic Gun 2 | 2 . . . Ballistic Cannon . | . . . . Launcher . | . . . . Special Weapon . | . . . . Impact Weapon . | . . . . Slashing Weapon 3 | . . 2 1 Piercing Weapon . | . . . . Special Melee Weapon . | . . . . Unidentified Prototypes 1 | . . . 1 Parts Lost 2 | . . . 2 Power 1 | . . . 1 Propulsion 1 | . . . 1 Utility . | . . . . Weapon . | . . . . Highest Loss Streak 2 | . . . 2 To Critical Strikes . | . . . . Average Backups 5 | 1 3 5 5 Power . | . 1 1 1 Propulsion 1 | 1 2 2 1 Utility . | . . . 1 Weapon 1 | . . 2 2 Tool/Special . | . . . . Unused Backups 5 | . . . 5 Power 1 | . . . 1 Propulsion 2 | . . . 2 Utility 2 | . . . 2 Weapon . | . . . . Tool/Special . | . . . . Average Slot Usage (%) 99 | . 88 100 99 Engine 13 | . 14 14 13 Leg 28 | . 28 28 28 Storage 14 | . 14 14 14 Processor 13 | . 3 14 14 Ballistic Gun 14 | . 28 16 12 Slashing Weapon 13 | . . 11 15 Peak Build Rating 17 | 6 7 7 17 Average Rating 7 | 4 6 6 7 On Entrance 5 | . 6 7 7 Avg Prop Armor Cover (%) . | . . . . Naked Turns . | . . . . Heaviest Build 16 | 13 13 14 16 Greatest Support 38 | 20 20 20 38 Greatest Overweight (x) . | . . . . Average Overweight (x) . | . . . . Largest Inventory Capacity 8 | 8 8 8 8 Average Capacity 7 | 6 8 8 8 Most Carried 8 | 3 5 7 8 Average Carried 6 | 1 4 5 7 Final Capacity 8 | 8 8 8 8 Final Carried 7 | 3 5 6 7 Class Distribution -------------------- 100% | Mutant Dominant Class ---------------- Mutant | -10/Materials Mutant | -10/Subcaves Mutant | -9/Scraptown Resources | -11 -10 -10 -9 ----------- Run | Yrd Mat Sub Scr Matter Collected 362 | 236 . 57 69 Remotely . | . . . . Salvage Created 339 | . . 57 282 Parts 19 | . . 6 13 Haulers Intercepted . | . . . . Recyclers Shooed . | . . . . Parts Field Recycled . | . . . . Retrieved Matter . | . . . . Parts Self-Destructed 9 | . . 9 . Prevented . | . . . . Parts Restored . | . . . . Kills | -11 -10 -10 -9 ------- Run | Yrd Mat Sub Scr Combat Hostiles Destroyed 5 | . . 1 4 Melee 4 | . . . 4 Guns 1 | . . 1 . Classes Destroyed 4 | . . 1 3 Subdweller 1 | . . 1 . Guru 1 | . . . 1 Scrapper 2 | . . . 2 Elite 1 | . . . 1 Best Kill Streak 2 | . . 1 2 Combat Bots Only 2 | . . 1 2 Max Kills in Single Turn 1 | . . 1 1 Gunslinging . | . . . . Exploded . | . . . . Melee 1 | . . . 1 Uniques/NPCs Destroyed . | . . . . Combat | -11 -10 -10 -9 -------- Run | Yrd Mat Sub Scr Hostile Shots Fired 61 | . 2 3 56 Missed 24 | . 1 1 22 Hits 37 | . 1 2 34 Melee 1 | . . . 1 Projectile 36 | . 1 2 33 Critical Strikes 3 | . . 1 2 Damage Taken 812 | . 12 83 717 Core 295 | . 12 31 252 Absorbed by Shields . | . . . . Core Remaining (%) 100 | 100 . . . Volleys Fired 8 | 4 . 4 . Largest 2 | 2 . 2 . Hottest 40 | 40 . 40 . Shots Fired 16 | 8 . 8 . Gun 16 | 8 . 8 . Cannon . | . . . . Launcher . | . . . . Special . | . . . . Kinetic 16 | 8 . 8 . Thermal . | . . . . Explosive . | . . . . Electromagnetic . | . . . . Robot Hit Streak 3 | 2 . 3 . Robot Miss Streak 3 | 1 . 3 . Penetration Max . | . . . . Secondary Targets . | . . . . Shots Hit Robots 19 | 5 . 4 10 Core Hits 7 | . . 2 5 Critical Kills . | . . . . Critical Parts Destroyed . | . . . . Critical Strikes . | . . . . Melee Attacks 17 | . . 4 13 Impact . | . . . . Slashing 17 | . . 4 13 Piercing . | . . . . Sneak Attacks . | . . . . Combat Hostiles . | . . . . Follow-up Attacks . | . . . . Damage Inflicted 518 | 81 . 39 398 Guns 120 | 81 . 39 . Cannons . | . . . . Explosions . | . . . . Melee 398 | . . . 398 Ramming . | . . . . Kinetic 120 | 81 . 39 . Thermal . | . . . . Explosive . | . . . . Electromagnetic . | . . . . Impact . | . . . . Slashing 398 | . . . 398 Piercing . | . . . . Highest Corruption 2 | . . . 2 Average Corruption 1 | . . . 1 Corruption Purged . | . . . . Corruption Blocked . | . . . . Effects 1 | . . . 1 Energy Discharges 1 | . . . 1 Overload Shots . | . . . . Overflow Damage . | . . . . Projectiles . | . . . . Explosions . | . . . . Melee . | . . . . Knockbacks . | . . . . Impact . | . . . . Kinetic . | . . . . Secondary . | . . . . Self-Inflicted Damage . | . . . . Shots . | . . . . Rammed . | . . . . Targets Rammed . | . . . . Kicked . | . . . . Crushed . | . . . . Highest Temperature . | . . . . Average Temperature . | . . . . Received Heat Transfer 90 | . 6 12 72 Siege Activations . | . . . . Martial Activations . | . . . . Shielding Activations . | . . . . Robots Disrupted . | . . . . Combat Hostiles . | . . . . Robots Corrupted . | . . . . Combat Hostiles . | . . . . Parts Fried . | . . . . Impact Corruptions . | . . . . Robots Melted . | . . . . Combat Hostiles . | . . . . Parts Melted 1 | . . . 1 Heat Transferred . | . . . . Parts Sabotaged . | . . . . Parts Stolen . | . . . . Parts Stripped . | . . . . Power Chain Reactions . | . . . . Alert | -11 -10 -10 -9 ------- Run | Yrd Mat Sub Scr Maximum Alert Level . | . . . . Low Security (%) 100 | 100 100 . . Level 1 . | . . . . Level 2 . | . . . . Level 3 . | . . . . Level 4 . | . . . . Level 5 . | . . . . High Security . | . . . . Max Security . | . . . . Peak Influence . | . . . . Initial . | . . . . Average . | . . . . Influence Increases . | . . . . Influence Decreases . | . . . . Squads Dispatched 1 | . 1 . . Investigation 1 | . 1 . . Extermination . | . . . . Reinforcement . | . . . . Assault . | . . . . Garrison . | . . . . Intercept . | . . . . Searches Triggered . | . . . . Construction Impeded . | . . . . Haulers Reinforced . | . . . . Active Scanning Responses . | . . . . Cargo Convoy Interrupts . | . . . . Stealth | -11 -10 -10 -9 --------- Run | Yrd Mat Sub Scr Distress Signals . | . . . . Communications Jammed . | . . . . Distress Signals . | . . . . Times Spotted 33 | . 2 1 30 Peak Tracking Total 33 | . 3 1 33 Tactical Retreats 2 | . . . 2 Traps | -11 -10 -10 -9 ------- Run | Yrd Mat Sub Scr Traps Triggered 1 | . . 1 . Indirectly . | . . . . Trap Hack Attempts . | . . . . Triggered . | . . . . Disarmed . | . . . . Reprogrammed . | . . . . Reused . | . . . . Traps Extracted . | . . . . Installed . | . . . . Triggered . | . . . . Most Traps Carried 2 | . . . 2 Machines | -11 -10 -10 -9 ---------- Run | Yrd Mat Sub Scr Machines Disabled 1 | . . . 1 Max in Single Turn 1 | . . . 1 Machines Repaired . | . . . . Machines Dismantled . | . . . . Machines Sabotaged . | . . . . Overloaded Fab Kills . | . . . . Hacking | -11 -10 -10 -9 --------- Run | Yrd Mat Sub Scr Machines Accessed 7 | . 2 1 4 Terminals 2 | . 2 . . Fabricators . | . . . . Repair Stations . | . . . . Recycling Units . | . . . . Scanalyzers . | . . . . Garrison Access . | . . . . Total Hacks 20 | . 6 5 9 Successful 14 | . . 5 9 Failed 6 | . 6 . . Catastrophic . | . . . . Database Lockouts . | . . . . Manual 1 | . 1 . . Terminals 6 | . 6 . . Fabricators . | . . . . Repair Stations . | . . . . Recycling Units . | . . . . Scanalyzers . | . . . . Garrison Access . | . . . . Terminal Hacks 14 | . . 5 9 Record 7 | . . 5 2 Robot Analysis 5 | . . . 5 Open Door 1 | . . . 1 Proto ID Catalog 1 | . . . 1 Fabricator Hacks . | . . . . Repair Station Hacks . | . . . . Recycling Unit Hacks . | . . . . Scanalyzer . | . . . . Garrison Access Hacks . | . . . . Unauthorized Hacks . | . . . . Terminals . | . . . . Fabricators . | . . . . Repair Stations . | . . . . Recycling Units . | . . . . Scanalyzers . | . . . . Garrison Access . | . . . . Data Cores Recovered . | . . . . Used . | . . . . Hacking Detections 2 | . 2 . . Full Trace Events 1 | . 1 . . Feedback Events . | . . . . Feedback Blocked . | . . . . Robot Schematics Acquired . | . . . . Robots Built . | . . . . Authchips . | . . . . Time . | . . . . Total Robot Build Rating . | . . . . Part Schematics Acquired . | . . . . Parts Built . | . . . . Authchips . | . . . . Time . | . . . . Total Part Build Rating . | . . . . Part Studies Acquired . | . . . . Parts Repaired . | . . . . Time . | . . . . Parts Recycled . | . . . . Recycled Matter . | . . . . Retrieved Matter . | . . . . Retrieved Components . | . . . . Parts Scanalyzed . | . . . . Part Schematics Acquired . | . . . . Parts Damaged . | . . . . Bothacking | -11 -10 -10 -9 ------------ Run | Yrd Mat Sub Scr Used RIF Installer . | . . . . Robots Hacked . | . . . . Non-combat . | . . . . Combat . | . . . . Robot Hacks Applied . | . . . . Relay Couplers Released . | . . . . Fabnet Peak Effective % . | . . . . Robots Rewired . | . . . . Allies Hacked . | . . . . Hacks Repelled . | . . . . Allies | -11 -10 -10 -9 -------- Run | Yrd Mat Sub Scr Total Allies . | . . . . Largest Group . | . . . . Highest-Rated Group . | . . . . Highest-Rated Ally . | . . . . Total Orders . | . . . . Ally Attacks . | . . . . Total Damage . | . . . . Kills . | . . . . Allies Corrupted . | . . . . Allies Melted . | . . . . Intel | -11 -10 -10 -9 ------- Run | Yrd Mat Sub Scr Active Infowar (turns) . | . . . . Robot Analysis Total 5 | . . . 5 Derelict Logs Recovered 1 | . . 1 . Drone Launches . | . . . . Drone Recoveries . | . . . . Exploration | -11 -10 -10 -9 ------------- Run | Yrd Mat Sub Scr Turns Passed 3255 | 95 177 455 2528 Spaces Moved 2596 | 62 145 349 2040 Core 3 | 3 . . . Treads . | . . . . Legs 2593 | 59 145 349 2040 Wheels . | . . . . Hover . | . . . . Flight . | . . . . Fastest Speed 50 | 50 120 120 100 Average Speed 119 | 116 120 120 119 Slowest Speed 120 | 120 120 120 120 Overloaded Moves . | . . . . Propulsion Burnouts . | . . . . Robots Hopped . | . . . . Potential Cave-ins . | . . . . Cave-ins Triggered . | . . . . Exploration Rate (%) 35 | 4 26 23 90 Regions Visited 3 Branch Regions 2 Pre-discovered Areas 1 | . . 1 . Known Exits Taken 2 | . 1 1 . Unknown Exits Taken 1 | 1 . . . Scrap Searched . | . . . . Spaces Dug . | . . . . Terrain Destroyed . | . . . . Melee . | . . . . Projectile . | . . . . AOE . | . . . . Terrain Rammed . | . . . . Walls Destroyed . | . . . . Machines Disabled . | . . . . Actions | -11 -10 -10 -9 --------- Run | Yrd Mat Sub Scr Total 2707 | 74 147 372 2114 Wait 57 | . . 10 47 Move 2593 | 61 144 348 2040 Hop . | . . . . Pick Up 9 | 3 2 1 3 Fast Attach 8 | 6 1 . 1 Attach 3 | . . 3 . Detach 4 | . . 3 1 Swap 3 | . . . 3 Drop 6 | . . . 6 Fire 8 | 4 . 4 . Melee 16 | . . 3 13 Ram . | . . . . Kick . | . . . . Crush . | . . . . Escape Stasis . | . . . . Rewire . | . . . . Trap . | . . . . Miscellaneous . | . . . . Route ------- -11/Scrapyard -10/Materials -10/Subcaves -9/Scraptown (discovered 1 exit: *Fac) History --------- Turn | Location | Event 10 | -11/Scrapyard | Discovered new exit (range 16) 96 | -11/Scrapyard | Entered Materials 263 | -10/Materials | Discovered new exit (range 9) 272 | -10/Materials | Identified exit to Subcaves 273 | -10/Materials | Entered Subcaves 274 | -10/Subcaves | Approached by a straggling Scientist 300 | -10/Subcaves | Build established: Mutant 415 | -10/Subcaves | Shifting Twisted Machinery released Sub. Monowheel 419 | -10/Subcaves | Shifting Twisted Machinery released Spk. Treads 424 | -10/Subcaves | Shifting Twisted Machinery released Mak. Light Armor Plating 441 | -10/Subcaves | A swath of the cavern ceiling suddenly collapsed 510 | -10/Subcaves | Learned location of Deep Caves (-7) 510 | -10/Subcaves | Learned 40 Factory zone layouts 541 | -10/Subcaves | Learned 2 Materials zone layouts 682 | -10/Subcaves | Scientist uncovered a shortcut to Scraptown 698 | -10/Subcaves | Identified exit to Scraptown 728 | -10/Subcaves | Entered Scraptown 1151 | -9/Scraptown | Visited Spacefarers 1234 | -9/Scraptown | Visited TADAMA 1306 | -9/Scraptown | Visited UFD Registry 1306 | -9/Scraptown | Registered with UFD as "Deathbay" 1342 | -9/Scraptown | Visited Science Guys 1443 | -9/Scraptown | Visited LU-1G1's Boring Crew 1677 | -9/Scraptown | Visited Analyses Database 1773 | -9/Scraptown | Visited Junk Repository 1803 | -9/Scraptown | Visited Sword Containment 1869 | -9/Scraptown | Visited Research Penetration Think Tank 2053 | -9/Scraptown | Visited Awakened 2096 | -9/Scraptown | Visited Fellowship of the Rings 2180 | -9/Scraptown | Discovered new exit (range 3) 2186 | -9/Scraptown | Identified exit to Factory 2960 | -9/Scraptown | Visited A0-MCA Data Center 2968 | -9/Scraptown | Given a B+ rating by A0-MCA 2988 | -9/Scraptown | Found A0-MCA's Component Scanner 3036 | -9/Scraptown | Found Prototype Slashing Weapon 3036 | -9/Scraptown | Identified Companion Sword 3117 | -9/Scraptown | Attacked by Scraptown defenders 3250 | -9/Scraptown | Core integrity fell below 50% 3256 | -9/Scraptown | Destroyed by Triborg with Siege Cannon Last Messages --------------- Penetrated by Slug. Ion Engine destroyed. System corrupted: Energy discharge (-32). Slug penetrates Wall. Ovr. Barrage Gun melted. 2J-F5C(E) destroyed. Penetrated by Slug. Optimus: "Hey you're that new member, I knew your registry entry had something suspicious about it!" Slug penetrates Machine. Triborg exits siege mode. Slug penetrates Machine. Slug penetrates Wall. Dropped Vortex Trap. Penetrated by Slug. Ovr. Titanium Leg destroyed. Slug penetrates Optimus. Triborg activates siege mode. TN-3TZ(E) heat damages Gauss Rifle. Penetrated by Siege Slug. Map ----- +----------------------------------------------------+ | ?????????????????????????????????????????????????? | | ?????????????????????????????????????????????????? | | ?????????????????????????????????????????????????? | | ?????????????????????????????????????????????????? | | ?????????????????????????????????????????????????? | | ?????????????????????????????????????????????????? | | ?????????????????????????????????????????????????? | | ?????????????????????????????????????????????????? | | ?????????????????????????????????????????????????? | | ?????????????????????????????????????????????????? | | ?????????????????????????????????????????????????? | | ?????????????????????????????????????????????????? | | ?????#############???????????????????????????????? | | ?????#""" " #??????????????????????????? ### | | ?????#""" " #????????????????#########?? # | | ?????#""" """" #???????????????#"""""""""#? # | | #????#""" " #???????????????#"""""""""## # | | #????#""" " #?????###########"""""""""## # | | #????#""" #?????#" " "" ##"""""""""## # | | #????#""" " #?????#" "" "##""" """## # | | #????#""" " #?????# "##""" """## ### | | #????#""" " #?????# "##""" "!"## ### | | #????#""" " ! #?????# ""##""""=="""## ## | | #????#""" "!==#?????#" ""##""" """## ## | | #????#"""""""""%=#?????# r! "##" ## ## | | #????##########!##????#"#@Er!########## ##### ## | | ###???????##### ########j&pp########### ##### ## | | #???????#""" """""""TT3"%""""""""""" """"" "" | | #???????#" = E TT E Er | | #???????#" !%* p ggj | | #???????#" j | | #???????#" | | #???#####" | | #???#"""" """""""""""""""""""""""""""" | | #???#"""" """""""""""""""""""""""""""" | | #???#"""" ""###### ################"" | | #???#"""" ""# ##????????#"" | | #???#"""" ""# X"#????????#"" | | ###?#"""" ""# "" "" ##????????#"" | | ""#"#"""" ""# "" "" X"#??????###"" | | """"#"""" ""# " " ######### #"" | | ""#######" "" "" | | ###?????#" "" "" | | #########" ""# " " ######### #"" | | ""# "" "" ""#??????###"" | | ""# "" "" ##????????#"" | | ""# X"#????????#"" | | ""# ##????????#"" | | ""###### ################"" | | """""""""""""""""""""""""""" | +----------------------------------------------------+ Best States ------------- Heat Dissipation 25 Energy Generation 10 Energy Capacity 250 Matter Stores 300 Matter Capacity 300 Sight Range 16 Terrain Scan Density 10 Evasion (%) 55 Item Schematics ----------------- None Robot Schematics ------------------ None Fabricated ------------ Nothing Repaired ---------- Nothing Studied --------- None Alien Tech Used ----------------- None Achievements -------------- Hunted Nice Directions, Buddy Challenges ------------ None Game ------ Seed GravitonGravjetLaser Manual? 0 Play Time 00:38:13 Cumulative 15.2 hours Start 2026.01.26 @ 12:11:33 End 2026.01.26 @ 15:09:39 Sessions 3 Manual Loads 0 Difficulty Rogue Special Mode None Game No. 25 Rogue 25 Adventurer 0 Explorer 0 Win Type - Total 0 Types 0/0/0/0/0/0/0/0/0/0 Lore% 21 Gallery% 14 Achievement% 13 Wizard Run 0 Options --------- Layout 1 ASCII 0 Keyboard 1 Movement Arrows Keybinds 0 Fullscreen 0 Font 14/SmallcapsGlow Map View 55x38 Zoom Use 0% Tactical HUD 0 Map Filters NONE Filters NONE Steam 1 RUN: 8d173bd8-aee1-427a-befa-b14825e4d267